fUST/lending_fUST_20250310
["ID","MTS","AMOUNT","RATE_DAILY","PERIOD"]
[355755718,1741536003113,8479.28575977,0.000195,2]
[355755724,1741536428143,-300.0,0.00029306,2]
[355755725,1741536428171,-200.85786664,0.00029307,2]
[355755726,1741536434133,-287.43412857,0.00029307,2]
[355755727,1741536453234,-286.11264286,0.00029307,2]
[355755728,1741536550103,-9225.59536193,0.00029307,2]
[355755729,1741536550125,-206.4210675,0.00029366,2]
[355755730,1741536550148,-161.1884485,0.00029479,2]
[355755731,1741536550170,-4610.90503345,0.00029485,2]
[355755732,1741536550192,-659.03953346,0.00030355,2]
[355755733,1741536550216,-500.0,0.00030798,2]
[355755734,1741536550242,-256.53737505,0.00030798,2]
[355755735,1741536550269,-532.62982348,0.00030798,2]
[355755736,1741536550295,-500.0,0.00030798,2]
[355755737,1741536550319,-500.0,0.00030798,2]
[355755738,1741536550345,-500.0,0.00030798,2]
[355755739,1741536550371,-500.0,0.00030798,2]
[355755740,1741536550395,-500.0,0.00030798,2]
[355755741,1741536550418,-500.0,0.00030798,2]
[355755742,1741536550443,-500.0,0.00030798,2]
[355755743,1741536550465,-500.0,0.00030798,2]
[355755744,1741536550488,-500.0,0.00030798,2]
[355755745,1741536550516,-500.0,0.00030798,2]
[355755746,1741536550539,-500.0,0.00030798,2]
[355755747,1741536550564,-500.0,0.00030798,2]
[355755748,1741536550589,-500.0,0.00030798,2]
[355755749,1741536550616,-500.0,0.00030798,2]
[355755750,1741536550642,-500.0,0.00030798,2]
[355755751,1741536550667,-500.0,0.00030798,2]
[355755752,1741536550696,-500.0,0.00030798,2]
[355755753,1741536550722,-500.0,0.00030798,2]
[355755754,1741536550862,-500.0,0.00030798,2]
[355755755,1741536550890,-500.0,0.00030798,2]
[355755756,1741536550918,-500.0,0.00030798,2]
[355755757,1741536550947,-500.0,0.00030798,2]
[355755758,1741536550974,-500.0,0.00030798,2]
[355755759,1741536551004,-500.0,0.00030798,2]
[355755760,1741536551038,-500.0,0.00030798,2]
[355755761,1741536551068,-500.0,0.00030798,2]
[355755762,1741536551097,-500.0,0.00030798,2]
[355755763,1741536551130,-500.0,0.00030798,2]
[355755764,1741536551162,-500.0,0.00030798,2]
[355755765,1741536551191,-835.96431799,0.00030798,2]
[355755766,1741536551221,-835.96431799,0.00030798,2]
[355755767,1741536551250,-835.96431799,0.00030798,2]
[355755768,1741536551281,-835.96431799,0.00030798,2]
[355755769,1741536551310,-835.96431799,0.00030798,2]
[355755770,1741536551346,-835.96431799,0.00030798,2]
[355755771,1741536551380,-835.96431799,0.00030798,2]
[355755772,1741536551415,-835.96431799,0.00030798,2]
[355755773,1741536551450,-835.96431799,0.00030798,2]
[355755774,1741536551483,-835.96431799,0.00030798,2]
[355755775,1741536551520,-835.96431799,0.00030798,2]
[355755776,1741536551554,-835.96431799,0.00030798,2]
[355755777,1741536551589,-835.96431799,0.00030798,2]
[355755778,1741536551623,-835.96431799,0.00030798,2]
[355755779,1741536551658,-835.96431799,0.00030798,2]
[355755780,1741536551693,-835.96431799,0.00030798,2]
[355755781,1741536551732,-835.96431799,0.00030798,2]
[355755782,1741536551771,-835.96431799,0.00030798,2]
[355755783,1741536551809,-835.96431799,0.00030798,2]
[355755784,1741536551843,-835.96431799,0.00030798,2]
[355755785,1741536551877,-835.96431799,0.00030798,2]
[355755786,1741536551911,-835.96431799,0.00030798,2]
[355755787,1741536551945,-835.96431799,0.00030798,2]
[355755788,1741536551979,-835.96431799,0.00030798,2]
[355755789,1741536552018,-835.96431799,0.00030798,2]
[355755790,1741536552055,-835.96431799,0.00030798,2]
[355755791,1741536552089,-835.96431799,0.00030798,2]
[355755792,1741536552124,-835.96431799,0.00030798,2]
[355755793,1741536552159,-835.96431799,0.00030798,2]
[355755794,1741536552193,-835.96431799,0.00030798,2]
[355755795,1741536552226,-835.96431799,0.00030798,2]
[355755796,1741536552258,-835.96431799,0.00030798,2]
[355755797,1741536552293,-835.96431799,0.00030798,2]
[355755798,1741536552327,-835.96431799,0.00030798,2]
[355755799,1741536552362,-835.96431799,0.00030798,2]
[355755800,1741536552399,-835.96431799,0.00030798,2]
[355755801,1741536552437,-835.96431799,0.00030798,2]
[355755802,1741536552474,-835.96431799,0.00030798,2]
[355755803,1741536552513,-835.96431799,0.00030798,2]
[355755804,1741536552551,-835.96431799,0.00030798,2]
[355755805,1741536552587,-835.96431799,0.00030798,2]
[355755806,1741536552622,-835.96431799,0.00030798,2]
[355755807,1741536552657,-835.96431799,0.00030798,2]
[355755808,1741536552694,-835.96431799,0.00030798,2]
[355755809,1741536552734,-835.96431799,0.00030798,2]
[355755810,1741536552770,-835.96431799,0.00030798,2]
[355755811,1741536552806,-827.27897443,0.00030798,2]
[355755812,1741536552840,-827.27897443,0.00030798,2]
[355755813,1741536552875,-827.27897443,0.00030798,2]
[355755814,1741536552908,-827.27897443,0.00030798,2]
[355755815,1741536552942,-827.27897443,0.00030798,2]
[355755816,1741536552976,-827.27897443,0.00030798,2]
[355755817,1741536553012,-827.27897443,0.00030798,2]
[355755818,1741536553048,-827.27897443,0.00030798,2]
[355755819,1741536553084,-827.27897443,0.00030798,2]
[355755820,1741536553119,-827.27897443,0.00030798,2]
[355755821,1741536553154,-827.27897443,0.00030798,2]
[355755822,1741536553190,-827.27897443,0.00030798,2]
[355755823,1741536553228,-827.27897443,0.00030798,2]
[355755824,1741536553265,-827.27897443,0.00030798,2]
[355755825,1741536553299,-827.27897443,0.00030798,2]
[355755826,1741536553333,-827.27897443,0.00030798,2]
[355755827,1741536553367,-827.27897443,0.00030798,2]
[355755828,1741536553400,-827.27897443,0.00030798,2]
[355755829,1741536553435,-827.27897443,0.00030798,2]
[355755830,1741536553458,-982.08676616,0.00030799,2]
[355755831,1741536553482,-500.0,0.00030898,2]
[355755832,1741536553504,-500.0,0.00030898,2]
[355755833,1741536553529,-500.0,0.00030898,2]
[355755834,1741536553554,-301.03466416,0.00030898,2]
[355755835,1741536553577,-279.74802407,0.00030898,2]
[355755836,1741536553599,-2228.82283674,0.000309,5]
[355755837,1741536553622,-15606.10774971,0.00031031,2]
[355755838,1741536556079,-13309.22686489,0.00031031,2]
[355755839,1741536556100,-1301.61475966,0.00031031,2]
[355755840,1741536556122,-24900.0,0.00031041,2]
[355755841,1741536556144,-500.0,0.00031073,5]
[355755842,1741536556165,-500.0,0.000311,5]
[355755843,1741536556187,-264.27366,0.00031166,2]
[355755844,1741536556207,-500.0,0.00031309,2]
[355755845,1741536556228,-250.0,0.00031476,2]
[355755846,1741536562104,-200.116326,0.00032224,120]
[355755847,1741536562124,-689.96304698,0.00032562,2]
[355755848,1741536562146,-414.358,0.00032877,2]
[355755849,1741536562167,-416.66666667,0.00033733,2]
[355755850,1741536562188,-982.0867661,0.00033821,2]
[355755851,1741536562209,-189.71984016,0.00033933,5]
[355755852,1741536562230,-267.43373459,0.00033933,5]
[355755853,1741536562250,-500.0,0.00033933,5]
[355755854,1741536562273,-125.5424235,0.00033933,5]
[355755855,1741536594658,500.0,0.00030798,2]
[355755856,1741536594717,500.0,0.00030798,2]
[355755857,1741536594766,500.0,0.00030798,2]
[355755858,1741536594826,500.0,0.00030798,2]
[355755859,1741536594948,233.65323089,0.00030798,2]
[355756040,1741536634074,150.0,0.0003104,2]
[355756186,1741536636634,-150.0,0.0003241,2]
[355756187,1741536636644,-500.0,0.0003359,2]
[355756188,1741536636654,-500.0,0.0003359,5]
[355756189,1741536636664,-150.0,0.0003378,2]
[355756190,1741536636674,-374.4575765,0.00033933,5]
[355756191,1741536636684,-2154.52874224,0.000349,7]
[355756192,1741536636694,-865.22206191,0.00035,2]
[355756193,1741536636704,-2560.858,0.00035,30]
[355756194,1741536636714,-152.086,0.00035,5]
[355756195,1741536636727,-150.0,0.0003515,2]
[355756196,1741536636737,-371.401217,0.0003589,2]
[355756197,1741536636747,-199.76353903,0.000362,98]
[355756198,1741536636757,-150.0,0.0003652,2]
[355756199,1741536636767,-264.65067899,0.00036552,5]
[355756200,1741536636777,-150.0,0.00037889,2]
[355756201,1741536636787,-1000.0,0.00039069,2]
[355756202,1741536636798,-506.19862437,0.00039069,5]
[355756203,1741536636808,-150.0,0.00039259,2]
[355756204,1741536636819,-1000.0,0.00039413,5]
[355756205,1741536636829,-982.0867661,0.00039865,2]
[355756206,1741536636839,-189.10694897,0.000399,2]
[355756207,1741536636848,-500.0,0.00039989,31]
[355756208,1741536636858,-560.72426491,0.00039989,31]
[355756209,1741536636868,-395.82361685,0.00039989,31]
[355756210,1741536636878,-500.0,0.00039989,2]
[355756211,1741536636893,-472.94859723,0.00039989,2]
[355756212,1741536636903,-500.0,0.00039989,2]
[355756213,1741536636913,-500.0,0.00039989,2]
[355756215,1741536636923,-500.0,0.00039989,2]
[355756216,1741536636933,-500.0,0.00039989,2]
[355756218,1741536636943,-500.0,0.00039989,2]
[355756219,1741536636953,-500.0,0.00039989,2]
[355756221,1741536636963,-500.0,0.00039989,2]
[355756223,1741536636972,-567.60648293,0.00039989,2]
[355756224,1741536636983,-500.0,0.00039989,2]
[355756225,1741536636992,-500.0,0.00039989,2]
[355756226,1741536637002,-500.0,0.00039989,2]
[355756227,1741536637012,-500.0,0.00039989,2]
[355756228,1741536637022,-86746.0038438,0.0003999,3]
[355756229,1741536637175,-3904.84427898,0.0003999,3]
[355756230,1741536637186,-340.76,0.00039999,2]
[355756231,1741536637196,-340.76,0.00039999,2]
[355756232,1741536637206,-340.76,0.00039999,2]
[355756233,1741536637215,-340.76,0.00039999,2]
[355756234,1741536637224,-340.76,0.00039999,2]
[355756235,1741536637234,-340.76,0.00039999,2]
[355756236,1741536637243,-340.76,0.00039999,2]
[355756237,1741536637253,-3572.87869937,0.0004,2]
[355756238,1741536637392,-500.0,0.00039989,2]
[355756239,1741536637402,-776.36131369,0.0004,2]
[355756240,1741536637414,-18153.38378459,0.0004,2]
[355756241,1741536637430,-43824.96249553,0.0004,2]
[355756317,1741536638515,-31.79029365,0.0004,2]
[355756319,1741536638527,-1342.18684,0.0004,2]
[355756322,1741536638539,-745.42480329,0.0004,2]
[355756324,1741536638550,-364.4110502,0.0004,2]
[355756326,1741536638562,-38297.23254568,0.0004,2]
[355756328,1741536638573,-26455.3,0.0004,30]
[355756330,1741536638583,-413.99,0.0004,30]
[355756332,1741536638592,-799.15,0.0004,30]
[355756334,1741536638603,-465.46,0.0004,30]
[355756336,1741536638612,-164.25,0.0004,30]
[355756338,1741536638621,-199.76353903,0.00040415,120]
[355756340,1741536638630,-152.086,0.00040507,14]
[355756342,1741536638640,-150.0,0.00040629,2]
[355756344,1741536638649,-371.401217,0.00041211,2]
[355756346,1741536638659,-185.898,0.00041521,61]
[355756348,1741536638669,-265.0,0.00041583,2]
[355756349,1741536638679,-881.39,0.000416,30]
[355756350,1741536638689,-150.0,0.00041999,30]
[355756351,1741536638699,-2801.92,0.0004259,120]
[355756352,1741536638709,-982.0867661,0.00042888,28]
[355756353,1741536638724,-150.0,0.00043369,30]
[355756354,1741536638734,-500.0,0.00043835,120]
[355756355,1741536638744,-150.0,0.00044739,30]
[355756356,1741536638755,-982.0867661,0.0004591,28]
[355756357,1741536638765,-28915.3346146,0.0004599,4]
[355756358,1741536638774,-1301.61475966,0.0004599,4]
[355756359,1741536638784,-17351.90169396,0.00046,2]
[355756360,1741536638795,-150.0,0.00046109,30]
[355756361,1741536638806,-1099.32248652,0.000462,2]
[355756362,1741536638816,-398.0,0.00046227,2]
[355756363,1741536638829,-26455.3,0.000463,30]
[355756364,1741536638839,-413.99,0.000463,30]
[355756365,1741536638849,-465.46,0.000463,30]
[355756366,1741536638859,-164.25,0.000463,30]
[355756367,1741536638868,-6542.1049877,0.00046342,19]
[355756369,1741536638879,-189.10694897,0.00046373,2]
[355756371,1741536638888,-799.15,0.000464,30]
[355756373,1741536638898,-28915.3346146,0.00046444,4]
[355756375,1741536638908,-1301.61475966,0.00046444,4]
[355756377,1741536638918,-29683.26365532,0.00046444,46]
[355756379,1741536638927,-28915.3346146,0.00046445,4]
[355756381,1741536638937,-1301.61475966,0.00046445,4]
[355756383,1741536638947,-57830.6692292,0.00046455,4]
[355756385,1741536638958,-6508.0737983,0.00046455,4]
[355756387,1741536638967,-13247.10835467,0.00046465,46]
[355756389,1741536638977,-222000.0,0.00046465,2]
[355756391,1741536638987,-179.2570724,0.00046475,31]
[355756393,1741536638998,-999.999999,0.0004651,30]
[355756395,1741536639008,-371.401217,0.00046532,2]
[355756397,1741536639017,-1301.61475966,0.00046555,4]
[355756399,1741536639028,-5206.45903864,0.00046565,4]
[355756401,1741536639038,-500.0,0.00046573,10]
[355756403,1741536639047,-500.0,0.00046573,10]
[355756405,1741536639060,-500.0,0.00046573,10]
[355756407,1741536639074,-500.0,0.00046573,10]
[355756409,1741536639083,-500.0,0.00046573,10]
[355756411,1741536639098,-500.0,0.00046573,10]
[355756413,1741536639109,-500.0,0.00046573,10]
[355756415,1741536639119,-523.82341145,0.00046573,2]
[355756417,1741536639128,-2000.0,0.00046574,120]
[355756418,1741536639138,-2000.0,0.00046574,120]
[355756420,1741536639152,-2000.0,0.00046574,120]
[355756422,1741536639162,-340.76,0.00046574,7]
[355756424,1741536639172,-340.76,0.00046574,7]
[355756425,1741536639181,-340.76,0.00046574,7]
[355756427,1741536639191,-500.0,0.00046575,30]
[355756428,1741536639200,-500.0,0.00046575,120]
[355756430,1741536639210,-500.0,0.00046575,120]
[355756432,1741536639220,-500.0,0.00046575,120]
[355756433,1741536639230,-500.0,0.00046575,120]
[355756435,1741536639240,-500.0,0.00046575,120]
[355756437,1741536639249,-500.0,0.00046575,120]
[355756439,1741536639259,-500.0,0.00046575,120]
[355756440,1741536639268,-500.0,0.00046575,120]
[355756442,1741536639278,-500.0,0.00046575,120]
[355756444,1741536639287,-500.0,0.00046575,120]
[355756446,1741536639297,-500.0,0.00046575,120]
[355756447,1741536639307,-500.0,0.00046575,120]
[355756449,1741536639316,-500.0,0.00046575,120]
[355756450,1741536639328,-500.0,0.00046575,120]
[355756452,1741536639337,-500.0,0.00046575,120]
[355756453,1741536639347,-500.0,0.00046575,120]
[355756454,1741536639357,-1561.61,0.00046575,120]
[355756455,1741536639366,-505.9057178,0.00046575,120]
[355756456,1741536639376,-500.0,0.00046575,120]
[355756457,1741536639390,-500.0,0.00046575,120]
[355756458,1741536639400,-12604.26,0.00046575,2]
[355756459,1741536639411,-500.0,0.00046575,120]
[355756460,1741536639421,-1000.0,0.00046575,2]
[355756461,1741536639431,-500.0,0.00046575,2]
[355756462,1741536639441,-500.0,0.00046575,120]
[355756463,1741536639451,-500.0,0.00046575,120]
[355756464,1741536639460,-500.0,0.00046575,120]
[355756465,1741536639470,-500.0,0.00046575,120]
[355756466,1741536639479,-664.4,0.00046575,120]
[355756467,1741536639488,-500.0,0.00046575,120]
[355756468,1741536639498,-500.0,0.00046575,120]
[355756469,1741536639507,-500.0,0.00046575,120]
[355756470,1741536639517,-500.0,0.00046575,120]
[355756471,1741536639527,-558.08831321,0.00046575,120]
[355756472,1741536639536,-500.0,0.00046575,120]
[355756473,1741536639546,-500.0,0.00046575,120]
[355756474,1741536639555,-500.0,0.00046575,120]
[355756475,1741536639565,-500.0,0.00046575,120]
[355756476,1741536639577,-500.0,0.00046575,120]
[355756477,1741536639587,-500.0,0.00046575,120]
[355756478,1741536639597,-500.0,0.00046575,120]
[355756479,1741536639607,-500.0,0.00046575,120]
[355756480,1741536639618,-500.0,0.00046575,120]
[355756481,1741536639628,-653.87,0.00046575,120]
[355756482,1741536639638,-500.0,0.00046575,120]
[355756483,1741536639648,-586.57,0.00046575,15]
[355756484,1741536639658,-500.0,0.00046575,120]
[355756485,1741536639668,-500.0,0.00046575,120]
[355756486,1741536639678,-500.0,0.00046575,120]
[355756487,1741536639688,-599.65,0.00046575,120]
[355756488,1741536639698,-500.0,0.00046575,120]
[355756489,1741536639708,-500.0,0.00046575,120]
[355756491,1741536639721,-1543.4,0.00046575,2]
[355756492,1741536639732,-500.0,0.00046575,120]
[355756493,1741536639742,-1313.62,0.00046575,120]
[355756494,1741536639752,-2833.15,0.00046575,120]
[355756495,1741536639763,-537.24437351,0.00046575,120]
[355756496,1741536639776,-500.0,0.00046575,120]
[355756497,1741536639786,-500.0,0.00046575,120]
[355756498,1741536639797,-500.0,0.00046575,120]
[355756499,1741536639808,-500.0,0.00046575,120]
[355756500,1741536639822,-589.31,0.00046575,120]
[355756501,1741536639831,-500.0,0.00046575,2]
[355756503,1741536639841,-500.0,0.00046575,120]
[355756504,1741536639851,-500.0,0.00046575,120]
[355756505,1741536639860,-500.0,0.00046575,120]
[355756506,1741536639871,-500.0,0.00046575,120]
[355756507,1741536640011,-500.0,0.00046575,120]
[355756508,1741536640022,-500.0,0.00046575,120]
[355756509,1741536640032,-500.0,0.00046575,120]
[355756510,1741536640042,-483.23724547,0.00046575,120]
[355756511,1741536640052,-500.0,0.00046575,120]
[355756513,1741536640061,-500.0,0.00046575,120]
[355756515,1741536640075,-500.0,0.00046575,120]
[355756517,1741536640085,-500.0,0.00046575,120]
[355756519,1741536640095,-500.0,0.00046575,120]
[355756520,1741536640105,-500.0,0.00046575,120]
[355756522,1741536640115,-937.99,0.00046575,120]
[355756524,1741536640124,-500.0,0.00046575,120]
[355756525,1741536640133,-500.0,0.00046575,120]
[355756526,1741536640143,-500.0,0.00046575,120]
[355756527,1741536640153,-500.0,0.00046575,120]
[355756528,1741536640163,-500.0,0.00046575,120]
[355756529,1741536640172,-500.0,0.00046575,120]
[355756530,1741536640183,-500.0,0.00046575,120]
[355756531,1741536640193,-308.31498879,0.00046575,2]
[355756532,1741536640204,-500.0,0.00046575,120]
[355756533,1741536640213,-500.0,0.00046575,120]
[355756534,1741536640222,-500.0,0.00046575,120]
[355756536,1741536640232,-500.0,0.00046575,120]
[355756538,1741536640242,-500.0,0.00046575,120]
[355756539,1741536640252,-500.0,0.00046575,120]
[355756540,1741536640262,-500.0,0.00046575,120]
[355756541,1741536640272,-500.0,0.00046575,120]
[355756543,1741536640283,-500.0,0.00046575,120]
[355756545,1741536640292,-500.0,0.00046575,120]
[355756547,1741536640302,-500.0,0.00046575,120]
[355756548,1741536640312,-523.18876996,0.00046575,120]
[355756550,1741536640325,-151.0,0.00046575,120]
[355756551,1741536640335,-500.0,0.00046575,120]
[355756552,1741536640345,-401.45508615,0.00046575,120]
[355756553,1741536640355,-500.0,0.00046575,120]
[355756554,1741536640365,-500.0,0.00046575,120]
[355756555,1741536640375,-500.0,0.00046575,120]
[355756556,1741536640385,-500.0,0.00046575,120]
[355756557,1741536640395,-500.0,0.00046575,120]
[355756558,1741536640405,-500.0,0.00046575,120]
[355756559,1741536640415,-500.0,0.00046575,120]
[355756560,1741536640425,-500.0,0.00046575,120]
[355756561,1741536640435,-500.0,0.00046575,120]
[355756562,1741536640444,-500.0,0.00046575,120]
[355756563,1741536640454,-500.0,0.00046575,120]
[355756564,1741536640463,-500.0,0.00046575,120]
[355756565,1741536640473,-500.0,0.00046575,120]
[355756566,1741536640483,-500.0,0.00046575,120]
[355756567,1741536640493,-151.0,0.00046575,120]
[355756568,1741536640503,-151.0,0.00046575,120]
[355756569,1741536640513,-151.0,0.00046575,120]
[355756570,1741536640523,-500.0,0.00046575,120]
[355756571,1741536640532,-671.16,0.00046575,120]
[355756572,1741536640542,-500.0,0.00046575,120]
[355756573,1741536640552,-500.0,0.00046575,120]
[355756574,1741536640562,-500.0,0.00046575,120]
[355756575,1741536640576,-500.0,0.00046575,120]
[355756576,1741536640586,-500.0,0.00046575,120]
[355756577,1741536640595,-207.916388,0.00046575,120]
[355756578,1741536640604,-759.62,0.00046575,120]
[355756579,1741536640614,-500.0,0.00046575,120]
[355756580,1741536640624,-500.0,0.00046575,120]
[355756581,1741536640633,-500.0,0.00046575,120]
[355756582,1741536640642,-500.0,0.00046575,120]
[355756583,1741536640652,-175.68599056,0.00046575,120]
[355756584,1741536640661,-1113.95,0.00046575,120]
[355756585,1741536640671,-570.23,0.00046575,120]
[355756586,1741536640680,-500.0,0.00046575,120]
[355756587,1741536640689,-500.0,0.00046575,120]
[355756588,1741536640698,-500.0,0.00046575,120]
[355756589,1741536640707,-500.0,0.00046575,120]
[355756590,1741536640721,-500.0,0.00046575,120]
[355756591,1741536640731,-500.0,0.00046575,120]
[355756592,1741536640740,-3338.67,0.00046575,120]
[355756593,1741536640749,-2565.22,0.00046575,120]
[355756594,1741536640761,-500.0,0.00046575,120]
[355756595,1741536640771,-500.0,0.00046575,120]
[355756596,1741536640780,-500.0,0.00046575,120]
[355756597,1741536640790,-1513.93,0.00046575,120]
[355756598,1741536640800,-500.0,0.00046575,120]
[355756599,1741536640810,-500.0,0.00046575,120]
[355756600,1741536640821,-963.79,0.00046575,120]
[355756601,1741536640831,-500.0,0.00046575,120]
[355756602,1741536640840,-500.0,0.00046575,120]
[355756603,1741536640851,-6618.34,0.00046575,120]
[355756604,1741536640861,-500.0,0.00046575,120]
[355756605,1741536640871,-500.0,0.00046575,120]
[355756606,1741536640883,-500.0,0.00046575,120]
[355756607,1741536640893,-500.0,0.00046575,120]
[355756608,1741536640903,-500.0,0.00046575,120]
[355756609,1741536640913,-839.68,0.00046575,120]
[355756610,1741536640923,-500.0,0.00046575,120]
[355756611,1741536640933,-151.0,0.00046575,120]
[355756612,1741536640943,-655.45,0.00046575,120]
[355756613,1741536640953,-500.0,0.00046575,120]
[355756614,1741536640963,-1045.23,0.00046575,120]
[355756615,1741536640973,-500.0,0.00046575,120]
[355756616,1741536640983,-500.0,0.00046575,120]
[355756617,1741536640993,-500.0,0.00046575,120]
[355756618,1741536641002,-500.0,0.00046575,120]
[355756619,1741536641011,-500.0,0.00046575,120]
[355756620,1741536641021,-500.0,0.00046575,120]
[355756621,1741536641031,-500.0,0.00046575,120]
[355756622,1741536641041,-500.0,0.00046575,120]
[355756623,1741536641051,-659.09,0.00046575,120]
[355756624,1741536641061,-500.0,0.00046575,120]
[355756625,1741536641075,-500.0,0.00046575,120]
[355756626,1741536641086,-33617.31,0.00046575,7]
[355756627,1741536641097,-500.0,0.00046575,120]
[355756628,1741536641107,-151.0,0.00046575,120]
[355756629,1741536641118,-2083.27,0.00046575,120]
[355756630,1741536641129,-1460.85,0.00046575,120]
[355756631,1741536641139,-500.0,0.00046575,120]
[355756632,1741536641150,-500.0,0.00046575,120]
[355756633,1741536641161,-552.11,0.00046575,120]
[355756634,1741536641172,-500.0,0.00046575,120]
[355756635,1741536641183,-512.78279178,0.00046575,7]
[355756636,1741536641192,-151.0,0.00046575,120]
[355756637,1741536641202,-738.13,0.00046575,120]
[355756638,1741536641211,-500.0,0.00046575,120]
[355756639,1741536641222,-992.33,0.00046575,120]
[355756640,1741536641232,-565.64,0.00046575,120]
[355756641,1741536641242,-1003.8,0.00046575,120]
[355756642,1741536641251,-500.0,0.00046575,120]
[355756643,1741536641261,-500.0,0.00046575,120]
[355756644,1741536641271,-151.0,0.00046575,120]
[355756645,1741536641281,-1000.0,0.00046575,7]
[355756646,1741536641291,-859.95,0.00046575,120]
[355756647,1741536641301,-500.0,0.00046575,120]
[355756648,1741536641311,-151.0,0.00046575,120]
[355756649,1741536641322,-500.0,0.00046575,120]
[355756650,1741536641332,-500.0,0.00046575,120]
[355756651,1741536641341,-151.0,0.00046575,120]
[355756652,1741536641351,-500.0,0.00046575,120]
[355756653,1741536641361,-500.0,0.00046575,2]
[355756654,1741536641371,-393.66954304,0.00046575,120]
[355756655,1741536641381,-151.0,0.00046575,120]
[355756656,1741536641391,-500.0,0.00046575,120]
[355756657,1741536641401,-1156.59,0.00046575,120]
[355756658,1741536641410,-256.5808932,0.00046575,120]
[355756659,1741536641420,-154.270861,0.00046575,120]
[355756660,1741536641430,-500.0,0.00046575,120]
[355756661,1741536641439,-500.0,0.00046575,120]
[355756662,1741536641449,-504.72,0.00046575,120]
[355756663,1741536641459,-500.0,0.00046575,120]
[355756664,1741536641468,-500.0,0.00046575,120]
[355756665,1741536641478,-500.0,0.00046575,120]
[355756666,1741536641488,-297.71,0.00046575,120]
[355756667,1741536641498,-500.0,0.00046575,120]
[355756668,1741536641507,-500.0,0.00046575,120]
[355756669,1741536641517,-500.0,0.00046575,120]
[355756670,1741536641527,-500.0,0.00046575,120]
[355756671,1741536641536,-500.0,0.00046575,120]
[355756672,1741536641546,-500.0,0.00046575,120]
[355756673,1741536641556,-500.0,0.00046575,120]
[355756674,1741536641566,-500.0,0.00046575,120]
[355756675,1741536641578,-500.0,0.00046575,120]
[355756676,1741536641588,-500.0,0.00046575,120]
[355756677,1741536641598,-500.0,0.00046575,120]
[355756678,1741536641609,-500.0,0.00046575,120]
[355756679,1741536641619,-524.13,0.00046575,120]
[355756680,1741536641629,-500.0,0.00046575,120]
[355756681,1741536641639,-500.0,0.00046575,120]
[355756682,1741536641649,-564.654,0.00046575,120]
[355756683,1741536641659,-500.0,0.00046575,120]
[355756684,1741536641668,-500.0,0.00046575,120]
[355756685,1741536641679,-500.0,0.00046575,120]
[355756686,1741536641689,-500.0,0.00046575,120]
[355756687,1741536641698,-500.0,0.00046575,120]
[355756688,1741536641709,-500.0,0.00046575,120]
[355756689,1741536641719,-561.54377174,0.00046575,120]
[355756690,1741536641732,-500.0,0.00046575,2]
[355756691,1741536641742,-2086.16,0.00046575,120]
[355756692,1741536641752,-500.0,0.00046575,120]
[355756693,1741536641763,-590.011693,0.00046575,2]
[355756694,1741536641773,-150.0,0.00046849,90]
[355756695,1741536641783,-154.22678559,0.00046849,120]